bitfinex/quotes_BTCUSD_20250109
["timestamp","ask_amount","ask_price","bid_price","bid_amount"]
[1736447030625,0.215105,92978.0,92962.0,0.03402908]
[1736447031328,0.215105,92978.0,92961.0,0.215143]
[1736447031486,0.20027901,92980.0,92961.0,0.215143]
[1736447031697,0.215115,92974.0,92961.0,0.215143]
[1736447031940,0.215106,92977.0,92961.0,0.215143]
[1736447032604,0.215115,92974.0,92961.0,0.215143]
[1736447032941,0.20027901,92971.0,92958.0,0.21515]
[1736447033144,0.20027901,92971.0,92962.0,0.21514]
[1736447033384,0.0771,92973.0,92962.0,0.21514]
[1736447033935,0.003,92977.0,92963.0,0.10429976]
[1736447034138,0.003,92977.0,92964.0,0.215137]
[1736447034436,0.001,92971.0,92965.0,0.215134]
[1736447034666,0.001,92971.0,92962.0,0.215141]
[1736447035710,0.215107,92977.0,92962.0,0.215141]
[1736447035923,0.215107,92977.0,92962.0,0.20614098]
[1736447036127,0.002,92971.0,92957.0,0.215152]
[1736447036334,0.002,92971.0,92961.0,0.215142]
[1736447036539,0.002,92971.0,92965.0,0.215134]
[1736447037004,0.002,92971.0,92961.0,0.215142]
[1736447037236,0.003,92971.0,92961.0,0.215142]
[1736447037439,0.002,92971.0,92961.0,0.215142]
[1736447037615,0.215115,92974.0,92961.0,0.215142]
[1736447037791,0.001,92971.0,92961.0,0.215142]
[1736447038202,0.0441222,92971.0,92961.0,0.215142]
[1736447038633,0.0441222,92971.0,92924.0,0.215227]
[1736447038849,0.215125,92969.0,92941.0,0.10429976]
[1736447039174,0.215127,92968.0,92941.0,0.10429976]
[1736447039605,0.430255,92968.0,92946.0,0.215178]
[1736447039826,0.215139,92963.0,92954.0,0.215159]
[1736447040254,0.215139,92963.0,92946.0,0.10429976]
[1736447040463,0.0216139,92962.0,92950.0,0.215167]
[1736447040666,0.047,92965.0,92953.0,0.21516]
[1736447040878,0.047,92965.0,92951.0,0.215167]
[1736447041083,0.215146,92961.0,92951.0,0.215167]
[1736447041478,0.215139,92963.0,92954.0,0.215158]
[1736447041906,0.0477269,92962.0,92943.0,0.215184]
[1736447042110,0.215177,92947.0,92940.0,0.00049688]
[1736447042327,0.0794,92952.0,92940.0,0.00049688]
[1736447042759,0.0468,92978.0,92942.0,0.215187]
[1736447042984,0.0468,92978.0,92940.0,0.00049688]
[1736447042985,0.002,92963.0,92962.0,0.21514]
[1736447043217,0.005,92963.0,92962.0,0.21514]
[1736447043648,0.005,92963.0,92960.0,0.215145]
[1736447043649,0.002,92963.0,92960.0,0.215145]
[1736447044054,0.215122,92971.0,92960.0,0.215145]
[1736447044411,0.13359445,92970.0,92962.0,0.001]
[1736447044631,0.06412295,92969.0,92962.0,0.001]
[1736447044833,0.0774,92976.0,92962.0,0.001]
[1736447045038,0.0774,92976.0,92951.0,0.00872]
[1736447045313,0.002,92971.0,92966.0,0.21513]
[1736447045518,0.002,92971.0,92952.0,0.10429976]
[1736447045723,0.0774,92976.0,92952.0,0.12811892]
[1736447046105,0.0814,92976.0,92952.0,0.12811892]
[1736447046328,0.215114,92974.0,92964.0,0.215135]
[1736447046526,0.215114,92974.0,92960.0,0.002]
[1736447046734,0.13359445,92970.0,92955.0,0.215157]
[1736447046947,0.0814,92976.0,92964.0,0.215135]
[1736447047151,0.0854,92976.0,92957.0,0.430306]
[1736447047357,0.0774,92976.0,92966.0,0.215131]
[1736447047571,0.002,92971.0,92966.0,0.215131]
[1736447047779,0.002,92971.0,92969.0,0.215123]
[1736447047982,0.002,92971.0,92966.0,0.215131]
[1736447048211,0.0774,92976.0,92966.0,0.215131]
[1736447048393,0.0844,92976.0,92966.0,0.215131]
[1736447048602,0.0844,92976.0,92963.0,0.215137]
[1736447048603,0.215111,92975.0,92963.0,0.215137]
[1736447048809,0.34871045,92973.0,92961.0,0.215141]
[1736447049229,0.002,92971.0,92961.0,0.430284]
[1736447049436,0.002,92971.0,92965.0,0.215133]
[1736447049847,0.004,92971.0,92965.0,0.215133]
[1736447050095,0.002,92971.0,92965.0,0.215133]
[1736447050320,0.002,92971.0,92969.0,0.215125]
[1736447050750,0.29729,92985.0,92973.0,0.20611398]
[1736447050974,0.06422168,92984.0,92973.0,0.42122898]
[1736447051203,0.06422168,92984.0,92973.0,0.20611398]
[1736447051388,0.07989298,92984.0,92973.0,0.20611398]
[1736447051739,0.15715862,92984.0,92973.0,0.20611398]
[1736447051943,0.15715862,92984.0,92959.0,0.01541006]
[1736447051944,0.06422168,92984.0,92980.0,0.430197]
[1736447052200,0.06422168,92984.0,92976.0,0.215108]
[1736447052414,0.06422168,92984.0,92972.0,0.215116]
[1736447052847,0.06422168,92984.0,92978.0,0.215102]
[1736447053064,0.06422168,92984.0,92964.0,0.00872]
[1736447053283,0.01422168,92984.0,92969.0,0.002]
[1736447053498,0.01422168,92984.0,92970.0,0.10429976]
[1736447053704,0.215103,92979.0,92966.0,0.215132]
[1736447054146,0.215103,92979.0,92970.0,0.215123]
[1736447054355,0.01412791,92984.0,92979.0,0.215101]
[1736447054569,0.01512791,92984.0,92970.0,0.10429976]
[1736447054775,0.01612791,92984.0,92971.0,0.43024]
[1736447054985,0.01512791,92984.0,92981.0,0.215096]
[1736447055199,0.01412791,92984.0,92981.0,0.430193]
[1736447055629,0.01612791,92984.0,92972.0,0.10429976]
[1736447055848,0.01612791,92984.0,92972.0,0.09529974]
[1736447056465,0.01612791,92984.0,92983.0,0.215093]
[1736447057091,0.01512791,92984.0,92983.0,0.215093]
[1736447057297,0.01412791,92984.0,92983.0,0.215093]
[1736447057523,0.01612791,92984.0,92983.0,0.215093]
[1736447058013,0.01512791,92984.0,92983.0,0.215093]
[1736447058262,0.01612791,92984.0,92983.0,0.215093]
[1736447059060,0.01512791,92984.0,92983.0,0.215093]
[1736447059946,0.01512791,92984.0,92983.0,0.32811276]
[1736447060162,0.01412791,92984.0,92983.0,0.32811276]
[1736447060363,0.01412791,92984.0,92983.0,0.33011276]
[1736447060955,0.01412791,92984.0,92983.0,0.35311276]
[1736447061110,9.1e-07,92984.0,92983.0,0.42941276]
[1736447061738,9.1e-07,92984.0,92983.0,0.52941276]
[1736447061962,9.1e-07,92984.0,92983.0,0.56293135]
[1736447062158,9.1e-07,92984.0,92983.0,0.66493135]
[1736447062364,9.1e-07,92984.0,92983.0,0.63571252]
[1736447062589,9.1e-07,92984.0,92983.0,0.65081231]
[1736447063141,9.1e-07,92984.0,92983.0,0.54881231]
[1736447063341,9.1e-07,92984.0,92983.0,0.65581231]
[1736447063746,9.1e-07,92984.0,92983.0,0.65981231]
[1736447064974,9.1e-07,92984.0,92983.0,0.43251255]
[1736447065175,9.1e-07,92984.0,92983.0,0.33239276]
[1736447065893,9.1e-07,92984.0,92983.0,0.013]
[1736447066321,9.1e-07,92984.0,92983.0,0.004]
[1736447066535,9.1e-07,92984.0,92983.0,0.008]
[1736447067213,9.1e-07,92984.0,92983.0,0.004]
[1736447067427,9.1e-07,92984.0,92983.0,0.001]
[1736447067840,9.1e-07,92984.0,92983.0,0.005]
[1736447068014,9.1e-07,92984.0,92975.0,0.215111]
[1736447068254,0.00200091,92984.0,92975.0,0.215111]
[1736447068462,0.00200091,92984.0,92979.0,0.215101]
[1736447068635,0.00200091,92984.0,92975.0,0.215111]
[1736447069299,0.00200091,92984.0,92976.0,0.215109]
[1736447069480,0.00600091,92984.0,92976.0,0.215109]
[1736447069719,9.1e-07,92984.0,92976.0,0.215109]
[1736447070154,0.00600091,92984.0,92976.0,0.215109]
[1736447070368,0.00200091,92984.0,92976.0,0.430218]
[1736447070542,0.00400091,92984.0,92976.0,0.215109]
[1736447070754,0.00600091,92984.0,92976.0,0.215109]
[1736447071613,0.00600091,92984.0,92961.0,0.00872]
[1736447071825,0.00600091,92984.0,92979.0,0.2151]
[1736447072846,9.1e-07,92984.0,92979.0,0.2151]
[1736447073051,0.002,92984.0,92981.0,0.215097]
[1736447073252,0.006,92984.0,92982.0,0.10429976]
[1736447073656,0.004,92984.0,92982.0,0.10429976]
[1736447073834,0.006,92984.0,92982.0,0.10429976]
[1736447074056,0.002,92984.0,92982.0,0.10429976]
[1736447074457,0.13359445,93000.0,92987.0,0.215083]
[1736447074673,0.13359445,93000.0,92991.0,0.215073]
[1736447075749,0.13359445,93000.0,92991.0,0.20607298]
[1736447076602,0.06586001,92999.0,92982.0,0.215094]
[1736447076812,0.14159445,93000.0,92972.0,0.215118]
[1736447076813,0.215077,92990.0,92972.0,0.215118]
[1736447077027,0.13359445,92982.0,92972.0,0.215118]
[1736447077244,0.13359445,92982.0,92967.0,0.215129]
[1736447077245,0.0815,92980.0,92967.0,0.215129]
[1736447077718,0.215102,92979.0,92969.0,0.215124]
[1736447078145,0.215102,92979.0,92965.0,0.215134]
[1736447078353,0.296602,92980.0,92968.0,0.215125]
[1736447079229,0.04464423,92979.0,92968.0,0.215125]
[1736447079436,0.04664423,92979.0,92968.0,0.215125]
[1736447079650,0.04464423,92979.0,92968.0,0.215125]
[1736447079867,0.04664423,92979.0,92968.0,0.215125]
[1736447080075,0.002,92979.0,92971.0,0.215118]
[1736447080391,0.296602,92980.0,92971.0,0.215118]
[1736447080808,0.003,92979.0,92971.0,0.20611798]
[1736447081250,0.002,92979.0,92971.0,0.20611798]
[1736447081504,0.002,92979.0,92964.0,0.00014898]
[1736447081722,0.002,92979.0,92965.0,0.10429976]
[1736447081933,0.002,92979.0,92977.0,0.215104]
[1736447082145,0.002,92979.0,92978.0,0.10429976]
[1736447082355,0.001,92980.0,92979.0,0.215102]
[1736447082604,0.001,92980.0,92979.0,0.31940176]
[1736447082826,0.001,92980.0,92977.0,0.215104]
[1736447083040,0.001,92980.0,92974.0,0.215113]
[1736447083251,0.001,92980.0,92977.0,0.002]
[1736447083458,0.34868445,92984.0,92974.0,0.215113]
[1736447083670,0.13359445,92984.0,92974.0,0.215113]
[1736447083848,0.002,92979.0,92974.0,0.215113]
[1736447084286,0.430163,92988.0,92974.0,0.215113]
[1736447084500,0.001,92980.0,92977.0,0.430211]
[1736447085379,0.002,92980.0,92977.0,0.430211]
[1736447085588,0.002,92980.0,92979.0,0.215102]
[1736447085803,0.002,92980.0,92979.0,0.20610198]
[1736447085975,0.01464843,92988.0,92979.0,0.20610198]
[1736447086402,0.01464843,92988.0,92960.0,0.01430165]
[1736447086403,0.01464843,92988.0,92983.0,0.215091]
[1736447086601,0.001,92979.0,92978.0,0.215104]
[1736447086912,0.001,92979.0,92978.0,0.34091416]
[1736447087303,0.21506,92998.0,92987.0,0.215082]
[1736447087469,0.002,92988.0,92987.0,0.215082]
[1736447088504,0.006,92988.0,92987.0,0.215082]
[1736447088738,0.002,92988.0,92987.0,0.215082]
[1736447089192,0.21506,92998.0,92987.0,0.215082]
[1736447089392,0.21506,92998.0,92977.0,0.215106]
[1736447089393,0.05784095,92997.0,92977.0,0.215106]
[1736447089601,0.215085,92987.0,92977.0,0.215106]
[1736447090272,0.215085,92987.0,92978.0,0.001]
[1736447090675,0.215085,92987.0,92977.0,0.20610598]
[1736447091091,0.216085,92987.0,92977.0,0.20610598]
[1736447091260,0.001,92987.0,92980.0,0.215099]
[1736447091460,0.001,92987.0,92977.0,0.20610598]
[1736447091878,0.001,92987.0,92980.0,0.215098]
[1736447092611,0.215073,92992.0,92980.0,0.215098]
[1736447092826,0.001,92987.0,92980.0,0.215098]
[1736447093231,0.215073,92992.0,92980.0,0.215098]
[1736447093580,0.001,92987.0,92983.0,0.215091]
[1736447093797,0.001,92987.0,92984.0,0.215089]
[1736447093994,0.01382297,93001.0,92984.0,0.0215089]
[1736447094263,0.215038,93007.0,92996.0,0.215061]
[1736447094419,8.51e-05,93009.0,93003.0,0.215045]
[1736447094622,8.51e-05,93009.0,93006.0,0.215039]
[1736447094822,8.51e-05,93009.0,93006.0,0.430078]
[1736447095028,8.51e-05,93009.0,93008.0,0.215035]
[1736447095664,0.0010851,93009.0,93008.0,0.215035]
[1736447095817,8.51e-05,93009.0,93008.0,0.20603498]
[1736447096219,0.0010851,93009.0,93008.0,0.20603498]
[1736447096619,8.51e-05,93009.0,93008.0,0.20603498]
[1736447096842,8.51e-05,93009.0,93008.0,0.21203498]
[1736447097424,8.51e-05,93009.0,93008.0,0.28767735]
[1736447098209,8.51e-05,93009.0,93008.0,0.21303498]
[1736447099203,8.51e-05,93009.0,93008.0,0.007]
[1736447099650,0.34848605,93020.0,93008.0,0.007]
[1736447099862,0.348635,93020.0,93008.0,0.222033]
[1736447100074,0.00014895,93020.0,93008.0,0.222033]
[1736447100290,0.00014895,93020.0,93008.0,0.437068]
[1736447100512,0.1337434,93020.0,93008.0,0.221033]
[1736447100711,0.1337434,93020.0,93008.0,0.21203298]
[1736447101353,0.215009,93019.0,93004.0,0.215042]
[1736447101518,0.215009,93019.0,93004.0,0.430085]
[1736447101737,0.215009,93019.0,93007.0,0.215035]
[1736447101934,0.10429976,93018.0,92994.0,0.215065]
[1736447102161,0.215047,93003.0,92979.0,0.0816]
[1736447102373,0.13359445,93000.0,92981.0,0.215097]
[1736447102589,0.215066,92995.0,92981.0,0.215097]
[1736447103016,0.215059,92998.0,92985.0,0.215086]
[1736447103224,0.263243,93005.0,92974.0,0.00872]
[1736447103225,0.215043,93005.0,92974.0,0.00872]
[1736447103446,0.430086,93005.0,92991.0,0.215073]
[1736447103880,0.215051,93001.0,92991.0,0.215073]
[1736447104506,0.215046,93004.0,92995.0,0.215065]
[1736447104727,0.215046,93004.0,92991.0,0.001]
[1736447104935,0.215046,93004.0,92992.0,0.215071]
[1736447105394,0.215055,93000.0,92990.0,0.215076]
[1736447105614,0.10429976,93004.0,92978.0,0.215104]
[1736447105615,0.13359445,93002.0,92985.0,0.215086]
[1736447105884,0.13359445,93002.0,92983.0,0.215091]
[1736447106095,0.13359445,93002.0,92974.0,0.223832]
[1736447106096,0.13359445,93000.0,92974.0,0.215112]
[1736447106300,0.215086,92986.0,92974.0,0.215112]
[1736447106510,0.215095,92982.0,92973.0,0.215114]
[1736447106725,0.215086,92986.0,92973.0,0.215114]
[1736447106964,0.215083,92988.0,92976.0,0.215107]
[1736447107169,0.21508,92989.0,92979.0,0.2151]
[1736447107580,0.22876372,92993.0,92979.0,0.2151]
[1736447107796,0.01369372,92993.0,92983.0,0.215092]
[1736447108021,0.01369372,92993.0,92987.0,0.215083]
[1736447108246,0.01369372,92993.0,92976.0,0.215107]
[1736447108247,0.001,92989.0,92976.0,0.215107]
[1736447108457,0.001,92989.0,92988.0,0.215081]
[1736447108677,0.002,92989.0,92988.0,0.31938076]
[1736447109552,0.001,92989.0,92988.0,0.31938076]
[1736447110215,0.215023,93014.0,92988.0,0.10429976]
[1736447110216,0.014056,93013.0,92988.0,0.10429976]
[1736447110443,0.0520593,93012.0,93004.0,0.215044]
[1736447110667,0.215023,93014.0,93004.0,0.215044]
[1736447110876,0.215023,93014.0,93004.0,0.20604398]
[1736447111553,0.215023,93014.0,93000.0,0.215051]
[1736447111765,0.00014895,93014.0,93011.0,0.215028]
[1736447111977,0.00014895,93014.0,93001.0,0.10429976]
[1736447112393,0.00014895,93014.0,93008.0,0.215034]
[1736447112594,0.00014895,93014.0,93011.0,0.430053]
[1736447112854,0.003,93012.0,92965.0,0.315133]
[1736447113063,0.00014895,93014.0,92965.0,0.315133]
[1736447113064,0.00014895,93014.0,92996.0,0.00872]
[1736447113272,0.00014895,93014.0,92997.0,0.10429976]
[1736447113453,0.00414895,93014.0,92997.0,0.10429976]
[1736447113671,0.215023,93013.0,93002.0,0.215047]
[1736447113879,0.00614895,93014.0,92996.0,0.21506]
[1736447113880,0.215032,93010.0,92996.0,0.21506]
[1736447114088,0.00014895,93014.0,92995.0,0.215064]
[1736447114288,0.215031,93010.0,92997.0,0.21506]
[1736447114622,0.215039,93007.0,92991.0,0.00872]
[1736447114832,0.215039,93007.0,92993.0,0.215069]
[1736447115039,0.215039,93007.0,92997.0,0.215059]
[1736447115449,0.215039,93007.0,92993.0,0.215069]
[1736447115450,0.27141954,93007.0,92993.0,0.215069]
[1736447115660,0.05638054,93007.0,92993.0,0.215069]
[1736447115874,0.215039,93006.0,92993.0,0.215069]
[1736447116413,0.05638054,93007.0,92997.0,0.215059]
[1736447116628,0.05738054,93007.0,92997.0,0.215059]
[1736447116872,0.05638054,93007.0,92997.0,0.215059]
[1736447117074,0.215034,93009.0,92997.0,0.215059]
[1736447117286,0.215034,93009.0,93000.0,0.215051]
[1736447117494,0.001,93007.0,93004.0,0.215043]
[1736447117710,0.002,93007.0,93004.0,0.215043]
[1736447117914,0.001,93007.0,93006.0,0.215039]
[1736447119185,0.001,93009.0,93006.0,0.430078]
[1736447119402,0.003,93009.0,93006.0,0.430078]
[1736447119608,0.001,93009.0,93006.0,0.430078]
[1736447119835,0.00014895,93014.0,93010.0,0.215029]
[1736447120253,0.00014895,93014.0,93010.0,0.430059]
[1736447120699,0.00014895,93014.0,93010.0,0.20602898]
[1736447121327,0.04994895,93021.0,93010.0,0.20602898]
[1736447122208,0.04994895,93021.0,93014.0,0.215021]
[1736447123099,0.05194895,93021.0,93014.0,0.215021]
[1736447123317,0.04994895,93021.0,93014.0,0.215021]
[1736447123739,0.05294895,93021.0,93014.0,0.215021]
[1736447123940,0.05294895,93021.0,93018.0,0.215011]
[1736447124184,0.05194895,93021.0,93018.0,0.215011]
[1736447124425,0.05294895,93021.0,93018.0,0.215011]
[1736447124858,0.05194895,93021.0,93018.0,0.430022]
[1736447125306,0.003,93021.0,93018.0,0.430022]
[1736447125523,0.003,93021.0,93014.0,0.215021]
[1736447125726,0.003,93021.0,93014.0,0.20602098]
[1736447125935,0.215007,93020.0,93007.0,0.215037]
[1736447126395,0.003,93021.0,93006.0,0.00107892]
[1736447126396,0.001,93021.0,93010.0,0.215029]
[1736447126650,0.002,93021.0,93013.0,0.215022]
[1736447126990,8.51e-05,93022.0,93018.0,0.001]
[1736447127211,0.002,93020.0,93018.0,0.001]
[1736447127414,0.002,93020.0,93016.0,0.215014]
[1736447127613,8.51e-05,93022.0,93016.0,0.215014]
[1736447127815,0.001,93021.0,93019.0,0.215007]
[1736447128018,0.003,93021.0,93019.0,0.215007]
[1736447128234,0.002,93021.0,93019.0,0.215007]
[1736447128681,0.001,93020.0,93019.0,0.215007]
[1736447129355,0.001,93020.0,93018.0,0.215011]
[1736447129356,0.001,93020.0,93014.0,0.215021]
[1736447131687,0.430026,93018.0,93014.0,0.001]
[1736447131911,0.20429976,93017.0,93014.0,0.001]
[1736447132129,0.2,93015.0,93014.0,0.001]
[1736447132339,0.20429976,93015.0,93014.0,0.001]
[1736447132547,0.215016,93016.0,93014.0,0.001]
[1736447133219,0.215034,93009.0,93006.0,0.00107892]
[1736447134581,0.215026,93012.0,93006.0,0.00107892]
[1736447134815,0.215037,93008.0,93006.0,0.00107892]
[1736447135033,0.003,93009.0,93006.0,0.00107892]
[1736447135451,0.215035,93008.0,93006.0,0.00107892]
[1736447135650,0.215035,93008.0,92994.0,0.2071449]
[1736447135880,0.2151577,93008.0,92994.0,0.2071449]
[1736447136113,0.0001227,93008.0,92998.0,0.215056]
[1736447136312,0.0001227,93008.0,92991.0,0.215074]
[1736447136527,0.0001227,93008.0,92991.0,0.31937376]
[1736447136725,0.0011227,93008.0,92998.0,0.215058]
[1736447136935,0.0001227,93008.0,92998.0,0.215058]
[1736447137190,0.0001227,93008.0,93003.0,0.430092]
[1736447137418,0.0021227,93008.0,93003.0,0.430092]
[1736447138077,0.0001227,93008.0,93003.0,0.430092]
[1736447138729,0.0011227,93008.0,93003.0,0.430092]
[1736447138948,0.0011227,93008.0,92976.0,0.0831]
[1736447138949,0.1,93001.0,92976.0,0.0831]
[1736447139160,0.13359445,92990.0,92972.0,0.0491]
[1736447139375,0.215112,92975.0,92969.0,0.42540157]
[1736447139590,0.13359445,92990.0,92969.0,0.42540157]
[1736447139591,0.21512,92972.0,92969.0,0.42540157]
[1736447139814,0.43024,92972.0,92969.0,0.42540157]
[1736447140025,0.43024,92972.0,92951.0,0.215165]
[1736447140026,0.43024,92972.0,92955.0,0.215156]
[1736447140244,0.043024,92971.0,92955.0,0.215156]
[1736447140472,0.21512,92972.0,92955.0,0.215156]
[1736447140473,0.215123,92970.0,92955.0,0.215156]
[1736447140703,0.215123,92970.0,92955.0,0.20647493]
[1736447140934,0.215123,92970.0,92955.0,0.20662391]
[1736447141395,0.215123,92970.0,92959.0,0.001]
[1736447142544,0.430246,92970.0,92959.0,0.001]
[1736447142757,0.215127,92968.0,92955.0,0.00014898]
[1736447143184,0.215127,92968.0,92955.0,0.00114898]
[1736447143420,0.215127,92968.0,92955.0,0.00014898]
[1736447143628,0.215127,92968.0,92959.0,0.001]
[1736447143859,0.215144,92961.0,92959.0,0.001]
[1736447144287,0.215144,92961.0,92955.0,0.00014898]
[1736447144288,0.215155,92956.0,92955.0,0.00014898]
[1736447144535,0.61775476,92956.0,92955.0,0.00214898]
[1736447144744,0.62152456,92956.0,92955.0,0.00214898]
[1736447144967,0.63228814,92956.0,92955.0,0.002]
[1736447145629,0.50928814,92956.0,92955.0,0.002]
[1736447145843,0.50928814,92956.0,92938.0,0.00017]
[1736447145844,0.1,92953.0,92910.0,0.14248465]
[1736447146054,0.215171,92949.0,92940.0,0.00049688]
[1736447146260,0.215182,92945.0,92940.0,0.00049688]
[1736447146971,0.215162,92953.0,92940.0,0.00049688]
[1736447147205,0.215173,92949.0,92940.0,0.00049688]
[1736447147445,0.215187,92943.0,92940.0,0.00049688]
[1736447147673,0.216173,92949.0,92940.0,0.00049688]
[1736447147674,0.215173,92949.0,92940.0,0.00049688]
[1736447147880,0.215153,92957.0,92940.0,0.00049688]
[1736447148095,1.06753773,92979.0,92953.0,0.215162]
[1736447148282,0.215138,92964.0,92942.0,0.215187]
[1736447148544,0.001,92949.0,92940.0,0.00049688]
[1736447149039,0.001,92949.0,92940.0,0.43188088]
[1736447149244,0.001,92949.0,92940.0,0.21568888]
[1736447149452,0.001,92949.0,92940.0,0.43088088]
[1736447149603,0.0226158,92949.0,92940.0,0.21568888]
[1736447149810,0.0216158,92949.0,92940.0,0.21568888]
[1736447150021,0.215185,92944.0,92940.0,0.00049688]
[1736447150224,0.43037,92944.0,92940.0,0.00049688]
[1736447150628,0.215187,92942.0,92940.0,0.00049688]
[1736447150854,0.13359445,92930.0,92916.0,0.215248]
[1736447151117,0.13359445,92930.0,92920.0,0.215238]
[1736447151319,0.215212,92932.0,92920.0,0.215238]
[1736447152075,1.06753773,92938.0,92920.0,0.215238]
[1736447152076,0.215204,92936.0,92920.0,0.215238]
[1736447152300,0.31948876,92942.0,92918.0,0.0001491]
[1736447152301,0.0216158,92949.0,92921.0,0.10429976]
[1736447152514,0.215178,92947.0,92934.0,0.215204]
[1736447152737,0.215167,92951.0,92940.0,0.005]
[1736447152951,0.215167,92951.0,92938.0,0.215195]
[1736447153162,0.13359445,92960.0,92927.0,0.215221]
[1736447153375,0.215163,92953.0,92928.0,0.10429976]
[1736447153616,0.215163,92953.0,92942.0,0.215187]
[1736447153835,0.215153,92957.0,92942.0,0.215187]
[1736447154060,0.002,92951.0,92942.0,0.215187]
[1736447154278,0.005,92951.0,92942.0,0.215187]
[1736447154478,0.002,92951.0,92942.0,0.215187]
[1736447154695,0.002,92951.0,92942.0,0.31948676]
[1736447155171,0.215167,92951.0,92937.0,0.215199]
[1736447155560,0.215169,92950.0,92927.0,0.291121]
[1736447155778,0.215183,92945.0,92927.0,0.17119974]
[1736447156013,0.13359445,92940.0,92923.0,0.215231]
[1736447156223,0.13359445,92933.0,92919.0,0.215239]
[1736447156666,0.215212,92932.0,92919.0,0.215239]
[1736447156882,0.13359445,92933.0,92918.0,0.0001491]
[1736447157071,1.06753773,92932.0,92918.0,0.0001491]
[1736447157657,1.06753773,92932.0,92919.0,0.004]
[1736447157873,0.10429976,92931.0,92919.0,0.004]
[1736447158080,0.215215,92930.0,92919.0,0.004]
[1736447158293,0.215228,92925.0,92919.0,0.004]
[1736447158774,0.21522,92929.0,92919.0,0.004]
[1736447159144,0.21522,92929.0,92918.0,0.0001491]
[1736447159364,1.06853773,92932.0,92918.0,0.0001491]
[1736447159365,0.13359445,92930.0,92918.0,0.0001491]
[1736447159588,0.215239,92920.0,92918.0,0.0001491]
[1736447159815,0.31953876,92920.0,92918.0,0.0001491]
[1736447160259,0.32729976,92919.0,92918.0,0.0001491]
[1736447160713,0.215294,92896.0,92884.0,0.20966268]
[1736447160921,0.215294,92896.0,92884.0,0.2098118]
[1736447161145,0.0215294,92895.0,92884.0,0.2098118]
[1736447161367,0.215299,92894.0,92884.0,0.2098118]
[1736447161608,0.215286,92900.0,92885.0,0.21532]
[1736447162237,0.215295,92896.0,92885.0,0.21532]
[1736447162461,0.215305,92892.0,92884.0,0.00014912]
[1736447162686,0.0215305,92891.0,92884.0,0.00014912]
[1736447162946,0.430628,92888.0,92884.0,0.00014912]
[1736447163158,1.28285073,92888.0,92884.0,0.00014912]
[1736447163367,0.20165373,92900.0,92884.0,0.00014912]
[1736447163368,0.001,92900.0,92884.0,0.00014912]
[1736447163577,1.06753773,92905.0,92884.0,0.00114912]
[1736447163790,0.215318,92886.0,92884.0,0.00514912]
[1736447164022,0.10429976,92885.0,92884.0,0.00014912]
[1736447164248,0.30949976,92885.0,92884.0,0.00014912]
[1736447164455,0.40949976,92885.0,92884.0,0.00014912]
[1736447164870,0.10429976,92885.0,92884.0,0.00014912]
[1736447165072,0.20429976,92885.0,92884.0,0.00014912]
[1736447165276,0.20629976,92885.0,92884.0,0.00014912]
[1736447165507,0.10629976,92885.0,92884.0,0.00014912]
[1736447165723,0.215327,92882.0,92865.0,0.2068543]
[1736447165930,0.215337,92878.0,92865.0,0.2068543]
[1736447166336,0.002,92885.0,92870.0,0.215354]
[1736447166560,0.007,92885.0,92879.0,0.215332]
[1736447166777,0.005,92885.0,92879.0,0.215332]
[1736447166999,0.008,92885.0,92879.0,0.215332]
[1736447167410,0.003,92885.0,92875.0,0.215342]
[1736447167621,1.06753773,92899.0,92876.0,0.21534]
[1736447167622,0.215289,92898.0,92876.0,0.21534]
[1736447167829,0.215308,92891.0,92880.0,0.215331]
[1736447168459,0.215308,92891.0,92876.0,0.21534]
[1736447169417,0.001,92878.0,92876.0,0.21534]
[1736447169653,0.215294,92896.0,92875.0,0.001]
[1736447169870,0.20065373,92890.0,92875.0,0.001]
[1736447170100,0.430694,92874.0,92871.0,0.00014923]
[1736447170763,0.215356,92870.0,92858.0,0.20652921]
[1736447171346,0.215367,92865.0,92853.0,0.0463]
[1736447171547,0.215366,92865.0,92854.0,0.215391]
[1736447173469,0.005,92875.0,92859.0,0.20065373]
[1736447173677,0.005,92875.0,92874.0,0.290845]
[1736447173886,0.1,92915.0,92874.0,0.17979976]
[1736447173887,1.06753773,92903.0,92874.0,0.17979976]
[1736447174100,0.215295,92896.0,92875.0,0.12315174]
[1736447174314,0.215295,92896.0,92874.0,0.0755]
[1736447174315,0.004,92878.0,92876.0,0.21534]
[1736447174528,0.004,92878.0,92877.0,0.10429976]
[1736447174735,0.215282,92902.0,92877.0,0.10429976]
[1736447174905,1.06753773,92903.0,92877.0,0.10429976]
[1736447175281,0.215293,92897.0,92880.0,0.215331]
[1736447175518,0.215293,92897.0,92885.0,0.215319]
[1736447175736,0.215282,92901.0,92885.0,0.20631898]
[1736447175947,1.06753773,92903.0,92886.0,0.215317]
[1736447176151,0.21528,92902.0,92880.0,0.21533]
[1736447176357,0.21528,92902.0,92875.0,0.215342]
[1736447176562,0.215285,92900.0,92884.0,0.215322]
[1736447176820,0.01131214,92908.0,92884.0,0.215322]
[1736447177028,0.005,92901.0,92886.0,0.215317]
[1736447177340,0.115285,92900.0,92886.0,0.215317]
[1736447177550,0.22658014,92908.0,92877.0,0.002]
[1736447177551,0.10429976,92899.0,92877.0,0.002]
[1736447177763,0.430578,92898.0,92878.0,0.215336]
[1736447177998,0.20065373,92900.0,92862.0,0.0755]
[1736447178218,0.41596373,92890.0,92884.0,0.001]
[1736447178428,0.215317,92886.0,92884.0,0.001]
[1736447178642,0.10429976,92889.0,92884.0,0.001]
[1736447178829,0.215317,92886.0,92884.0,0.001]
[1736447179284,0.215315,92887.0,92884.0,0.001]
[1736447179641,0.10429976,92889.0,92867.0,0.215359]
[1736447180049,0.215331,92881.0,92864.0,0.215366]
[1736447180249,0.215327,92882.0,92864.0,0.215366]